bitfinex/quotes_ETHUSD_20260203
["timestamp","ask_amount","ask_price","bid_price","bid_amount"]
[1770161656573,12.98054787,2246.1,2245.1,0.001]
[1770161656768,12.98054787,2246.1,2245.3,0.001]
[1770161657142,12.98164787,2246.1,2245.3,0.001]
[1770161657346,0.0011,2246.1,2245.3,0.001]
[1770161658780,0.9351,2246.5,2245.7,0.00676956]
[1770161658781,0.0011,2246.5,2245.7,0.00676956]
[1770161659271,0.0011,2246.5,2245.9,0.00676956]
[1770161659479,12.98054787,2247.5,2246.3,0.00676956]
[1770161659773,0.23286493,2247.6,2246.3,0.00676956]
[1770161659974,12.98054787,2247.6,2246.3,0.3821704]
[1770161660485,12.98054787,2247.6,2246.3,0.00676956]
[1770161660657,12.98054787,2247.6,2246.2,0.00676956]
[1770161661055,12.98054787,2247.6,2246.1,0.00676956]
[1770161661676,13.79676984,2247.9,2246.2,3.74046925]
[1770161661844,12.59965872,2247.8,2246.6,0.00676956]
[1770161662447,0.934,2248.1,2246.6,0.00676956]
[1770161662685,13.53365872,2248.2,2246.6,3.74046925]
[1770161662983,13.53365872,2248.2,2246.7,0.37472388]
[1770161663146,12.59965872,2248.2,2246.7,0.37472388]
[1770161664281,13.53365872,2248.2,2246.7,0.37472388]
[1770161664874,0.23280369,2248.5,2247.0,3.73369969]
[1770161665060,13.01774217,2249.0,2247.4,3.73369969]
[1770161665061,12.59965872,2249.0,2247.4,3.73369969]
[1770161666787,12.59965872,2249.0,2247.3,0.934]
[1770161667390,13.28550014,2249.0,2247.3,0.934]
[1770161667582,12.59965872,2248.8,2247.3,0.934]
[1770161670871,12.59965872,2248.5,2247.3,0.934]
[1770161673412,12.59965872,2248.5,2247.3,4.66769969]
[1770161673575,12.59965872,2248.5,2247.4,0.46676997]
[1770161676511,0.45404389,2248.4,2246.7,0.37472388]
[1770161676704,12.59965872,2248.3,2246.7,0.37472388]
[1770161676879,12.59965872,2248.1,2246.7,0.37472388]
[1770161678289,12.59965872,2248.1,2246.6,0.00676956]
[1770161679179,13.71172383,2248.1,2246.5,0.933]
[1770161679894,12.59965872,2247.9,2246.5,0.933]
[1770161680789,12.59965872,2247.7,2246.5,0.933]
[1770161682500,1.11210042,2248.0,2246.5,4.66669969]
[1770161682501,12.59965872,2248.0,2246.5,4.66669969]
[1770161682808,12.59965872,2248.0,2246.6,4.20036966]
[1770161683581,12.59965872,2248.0,2246.6,0.47343953]
[1770161683792,12.59965872,2248.0,2246.6,0.00676956]
[1770161684489,12.59965872,2248.0,2246.7,0.001]
[1770161685583,0.0011,2248.3,2246.8,3.89]
[1770161685584,12.60075872,2248.3,2246.8,3.89]
[1770161685782,12.60075872,2248.3,2246.9,4.12279969]
[1770161687312,12.60075872,2248.3,2247.0,3.73369969]
[1770161688020,12.60075872,2248.3,2247.0,4.66669969]
[1770161688315,12.83145625,2249.0,2247.2,3.73369969]
[1770161688524,12.83145625,2249.0,2247.4,3.73369969]
[1770161690525,12.59965872,2249.3,2247.4,3.73369969]
[1770161690694,12.59965872,2249.3,2247.6,3.73369969]
[1770161693022,13.53265872,2249.3,2247.6,3.73369969]
[1770161694236,0.31237872,2249.4,2248.5,3.73369969]
[1770161694517,0.1085801,2249.8,2248.6,0.933]
[1770161694518,12.03091618,2249.8,2248.6,0.933]
[1770161695316,12.03091618,2249.8,2248.7,0.46666997]
[1770161695928,12.03091618,2249.8,2248.6,0.933]
[1770161696290,12.03091618,2249.8,2247.5,1.70026453]
[1770161696291,12.55413853,2249.6,2247.8,3.73369969]
[1770161697594,12.55413853,2248.6,2247.5,0.48555743]
[1770161697790,12.55413853,2248.6,2247.0,4.14341896]
[1770161698537,12.55413853,2248.6,2247.8,0.001]
[1770161699434,13.48713853,2249.1,2247.8,0.001]
[1770161700817,12.55413853,2249.1,2247.8,0.001]
[1770161701018,4.55467184,2249.5,2247.8,3.73469969]
[1770161701019,12.55413853,2249.5,2247.8,3.73469969]
[1770161701199,12.55413853,2249.5,2247.9,0.37346997]
[1770161701795,12.55413853,2249.5,2247.5,7.48604681]
[1770161701796,12.55413853,2248.8,2247.5,0.001]
[1770161702008,12.55413853,2248.6,2247.5,0.001]
[1770161703616,12.55413853,2248.6,2246.7,0.001]
[1770161703827,12.56090809,2248.4,2246.7,0.001]
[1770161704028,12.55413853,2248.2,2246.7,0.001]
[1770161704213,12.55413853,2248.0,2246.7,0.001]
[1770161704414,12.55413853,2247.8,2246.7,0.001]
[1770161704619,12.55413853,2247.6,2246.3,0.88953]
[1770161704840,12.55413853,2247.4,2246.4,0.00676956]
[1770161705041,1.18843121,2248.1,2246.5,0.00676956]
[1770161705042,12.55413853,2248.1,2246.5,0.00676956]
[1770161706342,12.55413853,2248.9,2247.1,3.73569969]
[1770161706527,12.55413853,2248.9,2247.0,7.48504681]
[1770161706528,12.55413853,2248.9,2247.2,5.79077434]
[1770161706838,12.55413853,2249.3,2247.3,3.73569969]
[1770161707808,13.48713853,2249.3,2247.3,3.73569969]
[1770161708008,13.48713853,2249.3,2247.4,4.31477712]
[1770161708247,12.55413853,2249.3,2247.5,3.73569969]
[1770161708941,12.55413853,2249.3,2247.6,3.73569969]
[1770161711153,0.0011,2249.6,2247.6,3.73569969]
[1770161711373,0.0011,2249.6,2248.2,3.73569969]
[1770161711516,0.0011,2249.6,2248.3,1.12207465]
[1770161711722,0.0011,2249.1,2248.3,1.12207465]
[1770161711947,0.0011,2249.1,2248.1,4.66869969]
[1770161713026,0.0011,2249.3,2248.2,3.73459969]
[1770161713229,0.0011,2249.6,2248.2,3.73459969]
[1770161714820,0.0011,2249.6,2248.3,0.933]
[1770161715531,13.0011,2249.6,2248.3,0.933]
[1770161718342,0.1085801,2249.8,2248.5,7.48504681]
[1770161718655,0.1085801,2249.8,2248.6,0.74850468]
[1770161718953,0.1085801,2249.8,2248.6,0.933]
[1770161718954,13.1085801,2249.8,2248.6,0.933]
[1770161719253,13.1085801,2249.8,2248.5,0.933]
[1770161719461,0.1085801,2249.8,2248.6,7.48504681]
[1770161720665,13.1085801,2249.8,2248.2,7.48504681]
[1770161720862,13.1085801,2249.8,2248.6,0.933]
[1770161721927,14.21979501,2249.8,2247.4,8.06412424]
[1770161722125,13.0,2249.6,2247.5,0.933]
[1770161722449,13.0,2249.4,2247.5,0.933]
[1770161722649,13.0,2249.2,2247.5,0.933]
[1770161722853,13.0,2249.0,2247.5,0.933]
[1770161723660,13.0,2248.8,2246.9,0.00676956]
[1770161723951,13.0,2248.2,2246.5,0.001]
[1770161724179,13.0,2248.0,2246.5,0.001]
[1770161724480,13.0,2247.8,2246.5,0.001]
[1770161724934,13.0,2247.6,2246.3,0.001]
[1770161725136,13.0,2247.4,2246.3,0.001]
[1770161725351,13.933,2247.4,2246.3,0.001]
[1770161725539,13.933,2247.4,2246.0,0.001]
[1770161725930,13.933,2247.4,2245.5,0.186]
[1770161726150,12.99905,2247.2,2245.4,0.001]
[1770161726530,12.99855,2247.1,2245.4,0.001]
[1770161727153,1.11259457,2247.0,2245.4,0.001]
[1770161727332,12.99805,2246.9,2245.4,0.001]
[1770161727534,12.99805,2246.7,2245.4,0.001]
[1770161727861,12.99805,2246.5,2245.5,0.00676956]
[1770161728229,12.99805,2246.5,2245.7,0.00676956]
[1770161728452,0.933,2247.0,2245.7,0.00676956]
[1770161728453,12.99805,2246.9,2245.7,0.00676956]
[1770161728759,1.393105,2246.8,2246.1,0.00676956]
[1770161728961,1.393105,2246.8,2246.0,0.00676956]
[1770161729136,1.393105,2246.8,2245.9,0.00676956]
[1770161729859,12.99805,2246.9,2246.2,0.00676956]
[1770161730174,4.44841051,2248.0,2246.4,0.00676956]
[1770161730175,12.99805,2247.4,2246.4,0.00676956]
[1770161731156,0.933,2247.8,2246.4,0.00676956]
[1770161731365,13.93105,2247.8,2246.4,0.00676956]
[1770161732962,13.93105,2247.8,2246.6,0.00676956]
[1770161732963,12.99805,2247.8,2246.6,0.00676956]
[1770161734864,13.93105,2248.2,2246.7,3.89]
[1770161735071,13.93105,2248.2,2246.8,0.38967696]
[1770161735072,12.99805,2248.2,2246.8,0.38967696]
[1770161735231,12.99805,2248.2,2246.6,0.00676956]
[1770161735435,12.99805,2248.4,2246.6,0.01066956]
[1770161735653,14.10995411,2248.4,2246.6,0.00676956]
[1770161736161,14.10995411,2248.4,2246.5,0.00676956]
[1770161736372,0.4465,2248.3,2246.5,0.00676956]
[1770161736557,12.99805,2248.2,2246.5,0.00676956]
[1770161737464,11.65997692,2248.2,2246.5,1.34874264]
[1770161739039,11.65997692,2248.2,2246.7,0.001]
[1770161740470,12.77198838,2248.2,2246.7,0.001]
[1770161741264,13.26800123,2248.2,2246.7,0.001]
[1770161741965,12.32901346,2248.0,2246.5,0.001]
[1770161742153,12.32901346,2247.8,2246.5,0.001]
[1770161742867,12.32901346,2247.8,2246.2,0.00676956]
[1770161743866,12.32901346,2247.6,2246.2,0.00676956]
[1770161744064,12.32901346,2247.6,2246.3,0.00676956]
[1770161744248,12.32901346,2248.0,2246.3,0.00676956]
[1770161744449,12.32901346,2248.0,2246.3,1.19200023]
[1770161744665,12.32901346,2248.0,2246.3,2.53397331]
[1770161748370,12.32901346,2248.0,2246.3,1.34874264]
[1770161748584,13.44114105,2248.0,2246.3,0.00676956]
[1770161748749,14.13937535,2248.0,2246.3,0.00676956]
[1770161748951,12.32901346,2247.9,2246.3,0.00676956]
[1770161749147,12.32901346,2247.9,2246.3,0.49110043]
[1770161750577,12.32901346,2247.9,2246.4,3.89]
[1770161751114,0.23198014,2247.8,2246.5,3.89]
[1770161751455,12.32901346,2247.9,2246.6,3.89]
[1770161751680,12.32901346,2247.9,2246.7,0.389]
[1770161751866,12.32901346,2247.9,2246.8,3.89]
[1770161752973,12.56099032,2247.9,2246.8,3.89]
[1770161753574,13.67313982,2247.9,2246.8,3.89]
[1770161753974,12.32901346,2247.7,2246.5,0.001]
[1770161754178,12.32901346,2247.5,2246.5,0.001]
[1770161755580,12.60631463,2247.3,2246.5,0.001]
[1770161757864,12.60631463,2247.3,2246.3,0.001]
[1770161757865,13.71878409,2247.3,2246.3,0.001]
[1770161758366,5.6366345,2247.5,2246.3,0.001]
[1770161758367,12.60631463,2247.1,2246.3,0.001]
[1770161760686,12.60631463,2246.9,2245.6,0.001]
[1770161760997,12.60631463,2246.5,2245.6,0.001]
[1770161761164,1.18715787,2246.6,2245.6,0.001]
[1770161761165,12.60631463,2246.3,2245.6,0.001]
[1770161761365,12.60631463,2246.3,2245.4,0.001]
[1770161761794,13.53931463,2246.3,2245.2,0.001]
[1770161762021,12.60631463,2246.1,2245.1,0.001]
[1770161762365,12.60631463,2245.9,2245.1,0.001]
[1770161762593,12.60631463,2245.9,2244.6,0.001]
[1770161762594,12.60631463,2245.7,2244.6,0.001]
[1770161763097,12.60631463,2245.7,2244.6,0.00776956]
[1770161763393,13.54031463,2246.1,2244.7,0.00676956]
[1770161764604,13.54031463,2246.1,2244.6,0.001]
[1770161764901,13.54031463,2246.1,2244.7,0.00676956]
[1770161764902,12.60631463,2246.1,2244.7,0.00676956]
[1770161765586,12.60631463,2246.1,2245.0,3.89]
[1770161766575,12.60631463,2246.1,2244.6,0.001]
[1770161766788,13.71935896,2246.1,2244.6,0.001]
[1770161766985,12.60631463,2245.9,2244.6,0.001]
[1770161767389,12.60631463,2245.9,2245.0,0.001]
[1770161770487,12.60631463,2245.7,2245.0,0.001]
[1770161771299,1.9362359,2246.0,2244.6,0.001]
[1770161771300,12.60631463,2245.5,2244.6,0.001]
[1770161773071,12.60631463,2245.9,2244.6,0.001]
[1770161773277,13.54031463,2245.9,2244.6,0.00776956]
[1770161774492,12.60631463,2245.9,2244.6,0.00776956]
[1770161774704,13.54031463,2245.9,2244.7,0.00676956]
[1770161774878,14.89434609,2245.9,2244.7,0.00676956]
[1770161775075,14.89434609,2245.9,2244.6,0.00776956]
[1770161775512,14.89434609,2245.9,2244.6,0.001]
[1770161775987,14.89434609,2245.9,2244.6,0.00776956]
[1770161776379,13.96034609,2245.9,2244.7,0.00676956]
[1770161778015,1.39603461,2245.8,2244.7,0.00676956]
[1770161778911,12.60631463,2245.9,2244.8,3.89]
[1770161779919,12.60631463,2245.9,2244.9,0.001]
[1770161780224,12.60631463,2246.7,2245.5,0.00676956]
[1770161780808,0.0011,2245.9,2245.5,0.00676956]
[1770161781019,12.60631463,2246.7,2245.7,0.00676956]
[1770161781190,0.0011,2247.0,2245.7,0.00676956]
[1770161781396,0.0011,2247.0,2246.2,0.00676956]
[1770161781818,0.0011,2247.0,2245.7,0.00676956]
[1770161781989,12.813587,2247.0,2245.3,1.44927308]
[1770161782202,12.813587,2247.0,2245.7,0.00676956]
[1770161782399,12.813587,2247.0,2245.5,1.35364264]
[1770161782710,12.813587,2247.0,2245.7,0.00676956]
[1770161782911,12.813587,2247.0,2245.9,0.00676956]
[1770161786108,0.8124876,2247.1,2246.3,0.00676956]
[1770161786509,0.0011,2247.6,2246.3,0.00676956]
[1770161786708,0.0011,2247.6,2246.3,0.54005504]
[1770161786918,0.0011,2247.6,2246.4,0.53328548]
[1770161787135,0.0011,2248.2,2246.8,0.53108548]
[1770161787337,0.23289028,2248.2,2246.8,0.53108548]
[1770161787709,0.0011,2248.2,2246.9,0.934]
[1770161787922,12.813587,2248.2,2246.9,0.934]
[1770161788114,0.0011,2248.2,2246.9,1.46508548]
[1770161788335,0.0011,2248.2,2247.1,8.01689391]
[1770161788513,0.0011,2248.2,2247.2,1.33277487]
[1770161788914,0.2706803,2248.8,2247.2,1.33277487]
[1770161789114,0.2706803,2248.8,2247.2,0.80168939]
[1770161789316,0.2706803,2248.8,2247.5,7.48580843]
[1770161789529,0.2706803,2248.8,2247.5,8.01689391]
[1770161789736,0.2706803,2248.8,2247.7,0.63348548]
[1770161789911,0.0011,2249.3,2247.9,7.48580843]
[1770161790108,0.0011,2249.3,2248.0,0.40659979]
[1770161790713,12.813587,2249.3,2248.1,0.934]
[1770161791724,12.813587,2249.3,2248.0,0.934]
[1770161792249,12.813587,2249.3,2247.9,0.934]
[1770161792655,13.92506044,2249.3,2247.2,0.80168939]
[1770161792846,12.812487,2249.1,2247.3,1.77198978]
[1770161793147,12.812487,2249.1,2247.3,0.933]
[1770161793457,0.0011,2248.0,2246.7,7.48580843]
[1770161793620,0.0011,2248.0,2246.8,0.933]
[1770161793827,12.813587,2248.0,2246.5,0.91387934]
[1770161794223,12.813587,2248.0,2246.6,0.933]
[1770161794421,12.813587,2248.0,2246.7,0.933]
[1770161794859,12.813587,2248.0,2246.3,1.49120035]
[1770161795049,12.813587,2248.0,2246.4,0.933]
[1770161795245,12.813587,2248.0,2246.5,0.24242004]
[1770161795551,12.813587,2248.0,2246.5,0.09622543]
[1770161795552,13.92568737,2248.0,2246.5,0.09622543]
[1770161795740,12.812487,2247.9,2246.3,1.48443079]
[1770161795947,12.812487,2247.7,2246.3,1.49120035]
[1770161796344,12.812487,2247.7,2246.4,0.00676956]
[1770161797427,0.0011,2248.0,2246.4,0.00676956]
[1770161797634,0.0011,2248.0,2246.4,1.11052081]
[1770161797852,12.813587,2248.0,2246.4,1.11052081]
[1770161798153,12.813587,2248.0,2246.4,2.22341183]
[1770161798353,12.813587,2248.0,2246.4,1.11052081]
[1770161799727,12.813587,2248.0,2246.5,0.933]
[1770161800857,12.813587,2248.0,2246.6,3.89]
[1770161801061,0.0011,2248.0,2246.6,10.3]
[1770161801251,0.0011,2248.0,2246.7,10.3]
[1770161801450,0.0011,2248.0,2246.8,1.03]
[1770161804262,0.0011,2248.2,2246.9,4.29659979]
[1770161804448,0.0011,2249.1,2247.3,0.50679979]
[1770161804449,0.49711285,2249.1,2247.3,0.50679979]
[1770161804762,0.0011,2249.1,2247.4,1.33739979]
[1770161806054,12.813587,2249.1,2247.4,1.33739979]
[1770161806561,12.813587,2249.1,2247.5,0.25522406]
[1770161806729,12.590587,2249.1,2247.5,0.25522406]
[1770161807168,12.36613573,2249.1,2247.5,0.25522406]
[1770161807734,0.0011,2248.9,2247.5,0.25522406]
[1770161808060,12.813587,2248.9,2247.6,0.933]
[1770161809165,12.813587,2248.9,2247.1,0.1024]
[1770161809465,12.813587,2248.9,2247.2,11.233]
[1770161810862,12.813587,2248.9,2247.3,10.3]
[1770161811062,12.813587,2248.9,2247.4,1.1233]
[1770161811970,12.813587,2248.9,2247.5,3.89]
[1770161815068,12.813587,2248.9,2247.2,0.933]
[1770161815069,12.813587,2248.9,2247.6,3.89]
[1770161817865,12.813587,2248.9,2247.7,0.933]
[1770161818067,13.51155787,2248.9,2247.7,0.933]
[1770161819370,13.51155787,2248.9,2246.8,0.33198121]
[1770161819371,11.94576517,2248.3,2246.8,0.33198121]
[1770161819743,11.94576517,2248.1,2246.8,0.33198121]
[1770161820369,12.87876517,2248.1,2246.6,3.89]
[1770161820673,13.99083215,2248.1,2246.6,3.89]
[1770161820874,11.94576517,2247.9,2246.5,0.001]
[1770161821052,0.1024,2247.8,2246.5,0.001]
[1770161821256,11.94576517,2247.7,2246.5,0.001]
[1770161821453,11.94576517,2247.5,2246.3,1.48543079]
[1770161821663,11.94576517,2247.3,2246.3,0.001]
[1770161821845,11.94576517,2247.7,2246.5,0.00676956]
[1770161822047,11.94576517,2248.1,2246.6,0.933]
[1770161822676,11.94576517,2248.1,2246.5,0.00676956]
[1770161822872,11.94576517,2248.1,2246.3,0.00776956]
[1770161823244,11.94576517,2247.9,2246.3,0.001]
[1770161823571,11.94576517,2247.7,2246.3,0.001]
[1770161823873,11.94576517,2247.5,2246.3,0.001]
[1770161824065,11.94576517,2247.3,2246.3,0.001]
[1770161824272,0.2335703,2247.2,2246.0,0.001]
[1770161824582,12.87876517,2247.1,2246.0,0.001]
[1770161824760,11.94576517,2246.9,2246.0,0.001]
[1770161824957,11.94576517,2246.7,2246.0,0.001]
[1770161825577,11.94576517,2246.5,2245.1,0.001]
[1770161825885,12.87876517,2246.5,2245.1,0.001]
[1770161826047,11.94576517,2246.5,2245.1,0.001]
[1770161827770,13.05861297,2246.5,2245.1,0.001]
[1770161827962,11.94576517,2246.5,2245.1,0.001]
[1770161828167,1.34487445,2246.6,2245.1,0.001]
[1770161828168,11.94576517,2246.3,2245.1,0.001]
[1770161828476,12.87876517,2246.3,2245.1,0.001]
[1770161831381,11.94576517,2246.3,2245.1,0.001]
[1770161832464,11.94576517,2246.3,2245.6,0.001]
[1770161832682,11.94686517,2246.3,2245.6,0.001]
[1770161835675,0.0011,2246.3,2245.6,0.001]
[1770161836393,0.0011,2246.5,2245.7,3.89676956]
[1770161836680,0.0011,2246.5,2245.9,0.00676956]
[1770161837254,11.94686517,2246.5,2245.8,4.27977696]
[1770161838979,11.94686517,2246.5,2245.6,0.001]
[1770161841078,12.88086517,2246.5,2245.6,0.001]
[1770161841586,11.94686517,2246.5,2245.6,0.001]
[1770161842682,12.88086517,2246.5,2245.6,0.001]
[1770161843276,11.94686517,2246.5,2245.6,0.001]
[1770161843574,13.23495169,2246.5,2245.6,0.001]
[1770161844405,13.23495169,2246.5,2245.7,3.89]
[1770161845684,13.23495169,2246.5,2245.8,0.001]
[1770161846506,0.0011,2246.3,2245.8,0.001]
[1770161849006,0.23292112,2246.8,2246.2,0.00676956]
[1770161849211,0.23292112,2246.8,2246.1,0.00676956]
[1770161849383,0.23202641,2247.1,2246.2,0.00676956]
[1770161850110,0.0011,2247.4,2246.2,0.00676956]
[1770161850426,13.05712329,2247.3,2246.0,3.89]
[1770161850613,0.23202485,2247.3,2246.3,0.00676956]
[1770161850789,0.0011,2247.4,2246.4,0.934]
[1770161851337,0.2320083,2247.6,2246.6,4.74245106]
[1770161851620,0.23277417,2248.1,2246.6,8.63245106]
[1770161851822,13.75909844,2248.3,2246.7,4.75324511]
[1770161852027,13.05707935,2248.2,2246.7,9.49569617]
[1770161853344,13.05707935,2248.2,2246.8,8.63245106]
[1770161853631,0.23198091,2248.2,2246.9,4.74245106]
[1770161853836,0.23198091,2248.2,2247.0,0.934]
[1770161854041,12.82509844,2248.6,2247.1,0.56764511]
[1770161854246,0.0011,2248.9,2247.1,0.56764511]
[1770161854247,0.0011,2248.9,2247.3,4.74245106]
[1770161854747,0.0011,2248.9,2247.3,5.85486476]
[1770161855104,0.0011,2248.9,2247.4,4.74245106]
[1770161855710,0.0011,2248.9,2247.6,4.74245106]
[1770161855912,0.0011,2248.9,2247.7,6.96257188]
[1770161856410,0.0011,2248.9,2247.7,5.67645106]
[1770161857719,0.0011,2248.9,2247.8,4.74245106]
[1770161857942,0.0011,2249.1,2247.9,4.74245106]
[1770161859225,0.0011,2249.1,2248.1,4.74245106]
[1770161859441,0.0011,2249.1,2248.2,0.933]
[1770161859612,0.1085801,2249.8,2248.4,4.73915106]
[1770161859811,0.1085801,2249.8,2248.6,4.73915106]
[1770161860027,0.1085801,2249.8,2248.8,4.73805106]
[1770161860440,0.1096801,2249.8,2248.8,4.73805106]
[1770161860745,0.1096801,2249.8,2248.9,0.56710511]
[1770161861111,0.1096801,2249.8,2248.4,4.73805106]
[1770161861416,12.93477854,2249.8,2248.3,0.56754511]
[1770161861616,13.44357506,2249.8,2248.4,0.933]
[1770161861819,13.98034473,2249.8,2248.3,0.933]
[1770161862031,12.93477854,2249.8,2248.3,0.933]
[1770161863113,12.82509844,2250.2,2248.6,0.00676956]
[1770161864864,12.82509844,2250.0,2247.6,0.00676956]
[1770161865155,12.831868,2249.6,2248.0,0.933]
[1770161865445,12.82509844,2249.4,2248.0,0.933]
[1770161867231,12.82509844,2249.8,2248.0,13.7898082]
[1770161867547,12.82509844,2249.8,2248.1,1.37898082]
[1770161867753,12.82509844,2249.8,2248.1,6.11703188]
[1770161868327,12.82509844,2249.8,2248.2,4.73805106]
[1770161869254,12.82509844,2249.8,2248.1,1.37898082]
[1770161869448,12.82509844,2249.8,2248.0,0.933]
[1770161869654,13.05741818,2250.4,2248.8,8.11875714]
[1770161869830,13.05741818,2250.4,2248.9,0.933]
[1770161871306,12.73969136,2250.2,2248.9,0.933]
[1770161871447,13.67269136,2250.2,2248.9,0.933]
[1770161872332,0.0011,2249.6,2248.9,0.933]
[1770161872961,0.3133681,2250.9,2249.5,8.11875714]
[1770161873157,0.05923427,2250.8,2249.6,7.68249924]
[1770161873359,12.51546723,2251.3,2249.7,0.933]
[1770161873569,0.05923427,2251.2,2249.7,0.933]
[1770161873748,12.79892563,2251.2,2249.8,0.86154992]
[1770161874066,13.73192563,2251.2,2249.7,3.31063699]
[1770161875266,12.73969136,2251.0,2249.7,3.31063699]
[1770161875640,12.84881167,2250.8,2249.7,3.31063699]
[1770161876281,0.05923427,2250.7,2249.7,3.31063699]
[1770161876466,0.05923427,2250.7,2249.8,0.3310637]
[1770161880038,12.90804594,2250.7,2249.8,0.3310637]
[1770161880248,12.90804594,2250.7,2249.7,3.31063699]
[1770161880452,12.84881167,2250.6,2249.7,3.31063699]
[1770161880975,12.90804594,2250.5,2249.7,3.31063699]
[1770161881152,12.84881167,2250.5,2249.7,3.31063699]
[1770161881352,12.84881167,2250.3,2248.6,4.96227519]
[1770161881556,12.84881167,2250.3,2248.8,2.64850959]
[1770161881769,12.90804594,2250.2,2248.8,2.64850959]
[1770161881938,12.84881167,2250.2,2248.8,2.64850959]
[1770161882145,0.05923427,2250.1,2248.8,2.64850959]
[1770161882461,0.05923427,2250.1,2248.9,0.35805096]
[1770161882848,12.90804594,2250.1,2248.9,0.35805096]
[1770161883242,12.90804594,2250.1,2249.0,3.89]
[1770161884046,12.90804594,2250.1,2248.6,3.89]
[1770161884284,12.9148155,2250.1,2248.6,3.89]
[1770161884488,12.9148155,2250.1,2248.6,0.389]
[1770161884646,12.9148155,2250.1,2248.2,3.89]
[1770161884647,12.84881167,2249.9,2248.2,3.89]
[1770161885075,0.05923427,2249.8,2249.1,0.001]
[1770161885257,12.90804594,2249.8,2248.3,3.89]
[1770161885465,12.90804594,2249.8,2248.4,4.279]
[1770161886841,0.05923427,2249.8,2248.4,16.44391218]
[1770161887588,0.05923427,2249.8,2248.6,12.16491218]
[1770161888453,0.05923427,2249.8,2248.6,20.28366932]
[1770161888756,0.05923427,2249.8,2248.5,3.89]
[1770161888953,0.05923427,2249.8,2248.6,1.0689]
[1770161889169,12.90804594,2249.8,2248.6,1.0689]
[1770161889682,12.90804594,2249.8,2248.4,0.389]
[1770161891363,12.84881167,2249.6,2248.4,0.389]
[1770161892002,12.84881167,2249.4,2248.2,3.89]
[1770161892759,12.84881167,2249.4,2248.3,3.89]
[1770161892954,12.90804594,2249.3,2248.3,3.89]
[1770161893193,12.84881167,2249.7,2248.4,3.89]
[1770161893484,0.05923427,2249.6,2248.5,0.389]
[1770161893656,0.05923427,2249.5,2248.5,0.389]
[1770161893858,12.84881167,2249.7,2248.5,0.389]
[1770161894371,12.90804594,2249.6,2248.5,0.389]
[1770161894681,12.84881167,2249.6,2248.5,0.389]
[1770161894855,0.05923427,2249.5,2248.5,0.389]
[1770161895058,0.05923427,2249.9,2248.5,0.389]
[1770161895291,12.90804594,2249.9,2248.5,0.389]
[1770161895460,12.90804594,2249.9,2248.2,16.05491218]
[1770161896483,12.84881167,2249.6,2248.2,3.89]
[1770161896869,12.84881167,2249.4,2248.2,3.89]
[1770161897182,12.84881167,2249.4,2248.0,0.934]
[1770161897390,12.84881167,2249.2,2248.0,0.934]
[1770161898109,12.90804594,2249.1,2248.0,0.934]
[1770161898309,12.84881167,2249.1,2248.0,0.934]
[1770161898475,0.05923427,2249.0,2248.0,0.934]
[1770161898676,0.05923427,2249.0,2248.2,0.001]
[1770161899072,12.90804594,2249.0,2248.2,0.001]
[1770161899299,0.05923427,2249.0,2248.2,0.4835]
[1770161900581,12.92678148,2249.0,2248.2,0.001]
[1770161902571,0.933,2249.3,2248.2,0.001]
[1770161902993,0.05923427,2249.2,2248.3,3.89]
[1770161903194,0.05923427,2249.2,2248.3,4.2791]
[1770161903573,0.2323959,2249.1,2248.3,4.2791]
[1770161903993,0.05923427,2249.0,2248.3,4.2791]
[1770161904170,12.92678148,2249.0,2248.3,3.89]
[1770161907077,0.05923427,2249.0,2248.3,3.89]
[1770161908781,0.05923427,2249.0,2248.4,3.89]
[1770161909384,0.2323959,2249.1,2248.3,3.89]
[1770161909981,0.0011,2249.6,2248.3,3.89]
[1770161910210,0.05923427,2249.5,2248.4,0.3891]
[1770161910630,12.92678148,2249.5,2248.4,0.3891]
[1770161910795,12.92678148,2249.5,2248.3,3.89]
[1770161912525,0.95837223,2249.4,2248.3,3.89]
[1770161912693,13.85978148,2249.5,2248.4,0.001]
[1770161912887,0.0011,2248.8,2248.4,0.001]
[1770161914292,0.23351249,2249.6,2248.5,0.933]
[1770161914490,0.05923427,2249.4,2248.6,3.89]
[1770161914829,0.05923427,2249.4,2248.7,0.4823]
[1770161916339,0.05923427,2249.4,2248.8,3.89]
[1770161918597,0.05923427,2249.3,2248.8,3.89]
[1770161918819,0.05923427,2249.5,2248.8,3.89]
[1770161920721,0.05923427,2249.5,2248.9,3.89]
[1770161921299,0.05923427,2249.5,2249.0,3.89]
[1770161921516,0.05923427,2249.5,2249.1,3.89]
[1770161921891,0.05923427,2249.5,2249.2,3.89]
[1770161922722,0.23351249,2249.6,2249.2,3.89]
[1770161922894,0.05923427,2249.5,2249.2,3.89]
[1770161923093,12.92678148,2249.5,2248.8,3.64]
[1770161923412,13.82716559,2249.4,2248.5,0.933]
[1770161923593,0.95961838,2249.3,2248.5,0.933]
[1770161923793,1.01885265,2249.3,2248.5,0.933]
[1770161923995,0.05923427,2249.3,2248.5,0.933]
[1770161924621,13.82728391,2249.2,2248.4,0.001]
[1770161924822,12.86754721,2249.2,2248.4,0.001]
[1770161924993,0.959792,2249.1,2248.4,0.001]
[1770161925198,0.95992488,2249.0,2248.4,0.001]
[1770161925401,0.05923427,2249.1,2248.4,0.001]
[1770161926203,0.96002518,2249.0,2248.4,0.001]
[1770161926511,0.05923427,2249.1,2248.4,0.001]
[1770161926708,0.96005975,2249.0,2248.4,0.001]
[1770161926920,0.05923427,2249.1,2248.7,0.001]
[1770161927106,0.96009086,2249.0,2248.4,0.001]
[1770161927422,12.92678148,2249.1,2248.5,0.001]
[1770161927623,0.96001292,2249.0,2248.5,0.001]
[1770161927811,12.92678148,2249.1,2248.5,0.001]
[1770161928128,13.82758282,2249.0,2248.2,0.001]
[1770161928426,13.82758282,2248.9,2248.2,0.001]
[1770161928736,12.86754721,2248.9,2248.2,0.001]
[1770161930305,0.05923427,2248.8,2248.2,0.001]
[1770161930530,0.05923427,2249.0,2248.2,0.001]